fUSD/lending_fUSD_20251229
["ID","MTS","AMOUNT","RATE_DAILY","PERIOD"]
[400004997,1767012645167,-328.848986,0.00036986,31]
[400004998,1767012645176,-159.495917,0.00036986,31]
[400004999,1767012645185,-328.848986,0.00036986,31]
[400005000,1767012645195,-328.848986,0.00036986,31]
[400005001,1767012645204,-151.0,0.00036986,31]
[400005002,1767012645214,-151.0,0.00036986,31]
[400005003,1767012645223,-3751.35,0.00037,2]
[400005004,1767012645232,-192.49708535,0.000372,120]
[400005005,1767012645241,-222.30051953,0.0003742,7]
[400005006,1767012645251,-152.0,0.0003771,3]
[400005007,1767012645260,-189.29,0.00037865,2]
[400005008,1767012645269,-7712.30670103,0.00038201,2]
[400005009,1767012645278,-1092.6,0.00038349,5]
[400005010,1767012645288,-669.3,0.00038356,25]
[400005011,1767012645296,-648.9,0.00038356,37]
[400005012,1767012645305,-3751.35,0.000385,30]
[400005013,1767012645314,-2000.0,0.000385,2]
[400005014,1767012645323,-163.79,0.00038528,2]
[400005015,1767012645333,-364.0,0.0003854,2]
[400005016,1767012645342,-363.05,0.0003854,2]
[400005017,1767012645351,-304.3664977,0.00038556,2]
[400005018,1767012645360,-484.40337287,0.00038556,2]
[400005019,1767012645369,-595.39568782,0.00038556,2]
[400005020,1767012645379,-364.18164659,0.00038556,2]
[400005021,1767012645388,-303.20169357,0.00038556,2]
[400005022,1767012645397,-577.5673783,0.00038556,2]
[400005023,1767012645406,-1321.648778,0.00038556,2]
[400005024,1767012645415,-304.3664977,0.00038556,2]
[400005025,1767012645424,-595.39568782,0.00038556,2]
[400005026,1767012645433,-421.17005082,0.00038556,2]
[400005027,1767012645443,-577.5673783,0.00038556,2]
[400005028,1767012645452,-1321.648778,0.00038556,2]
[400005029,1767012645461,-304.3664977,0.00038556,2]
[400005030,1767012645471,-368.11189296,0.00038556,2]
[400005031,1767012645479,-303.58705004,0.00038556,2]
[400005032,1767012645488,-595.39568782,0.00038556,2]
[400005033,1767012645497,-364.18164659,0.00038556,2]
[400005034,1767012645507,-300.0,0.00038556,2]
[400005035,1767012645515,-303.20169357,0.00038556,2]
[400005036,1767012645525,-577.5673783,0.00038556,2]
[400005037,1767012645534,-1321.648778,0.00038556,2]
[400005038,1767012645543,-304.3664977,0.00038556,2]
[400005039,1767012645553,-519.60907308,0.00038556,2]
[400005040,1767012645562,-303.58705004,0.00038556,2]
[400005041,1767012645575,-595.39568782,0.00038556,2]
[400005042,1767012645584,-364.18164659,0.00038556,2]
[400005043,1767012645594,-300.0,0.00038556,2]
[400005044,1767012645603,-303.20169357,0.00038556,2]
[400005045,1767012645612,-577.5673783,0.00038556,2]
[400005046,1767012645621,-1321.648778,0.00038556,2]
[400005047,1767012645630,-189.29,0.00038731,2]
[400005048,1767012645639,-704.72532924,0.00039062,2]
[400005049,1767012645648,-1242.956,0.00039403,54]
[400005050,1767012645657,-351.07,0.00039654,2]
[400005051,1767012645667,-200.0,0.0003969,2]
[400005052,1767012645676,-200.0,0.0003969,2]
[400005053,1767012645684,-200.0,0.0003969,2]
[400005054,1767012645693,-200.0,0.0003969,2]
[400005055,1767012645702,-200.0,0.0003969,2]
[400005056,1767012645711,-200.0,0.0003969,2]
[400005057,1767012645720,-200.0,0.0003969,2]
[400005058,1767012645729,-200.0,0.0003969,2]
[400005059,1767012645738,-200.0,0.0003969,2]
[400005060,1767012645746,-200.0,0.0003969,2]
[400005061,1767012645755,-200.0,0.0003969,2]
[400005062,1767012645764,-200.0,0.0003969,2]
[400005063,1767012645773,-200.0,0.0003969,2]
[400005064,1767012645782,-200.0,0.0003969,2]
[400005065,1767012645791,-200.0,0.0003969,2]
[400005067,1767012645800,-200.0,0.0003969,2]
[400005068,1767012645809,-200.0,0.0003969,2]
[400005069,1767012645818,-200.0,0.0003969,2]
[400005070,1767012645827,-200.0,0.0003969,2]
[400005071,1767012645836,-200.0,0.0003969,2]
[400005072,1767012645845,-200.0,0.0003969,2]
[400005073,1767012645854,-200.0,0.0003969,2]
[400005074,1767012645863,-200.0,0.0003969,2]
[400005075,1767012645872,-200.0,0.0003969,2]
[400005076,1767012645881,-200.0,0.0003969,2]
[400005077,1767012645890,-200.0,0.0003969,2]
[400005078,1767012645899,-200.0,0.0003969,2]
[400005079,1767012645909,-200.0,0.0003969,2]
[400005080,1767012645918,-200.0,0.0003969,2]
[400005081,1767012645927,-200.0,0.0003969,2]
[400005082,1767012645936,-200.0,0.0003969,2]
[400005083,1767012645945,-200.0,0.0003969,2]
[400005084,1767012645954,-200.0,0.0003969,2]
[400005085,1767012645963,-200.0,0.0003969,2]
[400005086,1767012645972,-200.0,0.0003969,2]
[400005087,1767012645982,-200.0,0.0003969,2]
[400005088,1767012645991,-156.0,0.0003969,2]
[400005089,1767012646000,-500.0,0.00039856,14]
[400005090,1767012646009,-500.0,0.00039856,14]
[400005091,1767012646168,-500.0,0.00039856,14]
[400005092,1767012646178,-3751.35,0.000399,30]
[400005093,1767012646187,-823.21053483,0.0004,120]
[400005094,1767012646197,-500.0,0.0004,90]
[400005095,1767012646207,-1161.75,0.0004,120]
[400005096,1767012646217,-40196.92,0.0004,14]
[400005097,1767012646226,-2000.0,0.0004,120]
[400005098,1767012646236,-160.0,0.0004,33]
[400005099,1767012646245,-266.4,0.0004,33]
[400005100,1767012646254,-1000.0,0.00040065,7]
[400005101,1767012646264,-1000.0,0.000401,7]
[400005102,1767012646273,-1000.0,0.00040152,7]
[400005103,1767012646282,-158.08,0.00040183,120]
[400005104,1767012646291,-1000.0,0.00040205,7]
[400005105,1767012646300,-552.802466,0.00040205,120]
[400005106,1767012646309,-552.802466,0.00040205,120]
[400005107,1767012646318,-552.802466,0.00040205,120]
[400005108,1767012646327,-552.802466,0.00040205,120]
[400005109,1767012646336,-151.0,0.00040205,120]
[400005110,1767012646346,-151.0,0.00040205,120]
[400005111,1767012646354,-328.848986,0.00040205,120]
[400005112,1767012646364,-328.848986,0.00040205,120]
[400005113,1767012646373,-328.848986,0.00040205,120]
[400005114,1767012646382,-328.848986,0.00040205,120]
[400005115,1767012646391,-151.0,0.00040205,120]
[400005116,1767012646401,-151.0,0.00040205,120]
[400005117,1767012646410,-296.643705,0.00040205,120]
[400005118,1767012646419,-151.0,0.00040205,120]
[400005119,1767012646429,-466.846255,0.00040205,120]
[400005120,1767012646444,-1000.0,0.00040212,7]
[400005121,1767012646464,-3788.78292772,0.00040255,7]
[400005123,1767012646478,-1000.0,0.00040259,7]
[400005124,1767012646489,-1000.0,0.00040285,7]
[400005125,1767012646499,-178.57,0.00040301,2]
[400005126,1767012646509,-376.73,0.00040301,2]
[400005127,1767012646518,-163.79,0.00040362,2]
[400005128,1767012646527,-465.0,0.00040365,30]
[400005129,1767012646535,-1000.0,0.00040387,7]
[400005130,1767012646544,-300.0,0.00040458,2]
[400005131,1767012646553,-500.0,0.000405,90]
[400005132,1767012646562,-300.0,0.00040555,2]
[400005133,1767012646576,-150.0,0.000406,7]
[400005134,1767012646585,-1092.6,0.0004065,7]
[400005135,1767012646594,-1000.0,0.00040667,7]
[400005136,1767012646603,-500.0,0.00040678,14]
[400005137,1767012646613,-500.0,0.00040678,14]
[400005138,1767012646623,-150.0,0.0004071,7]
[400005139,1767012646632,-300.0,0.00040714,2]
[400005140,1767012646641,-465.0,0.00040782,30]
[400005141,1767012646651,-150.0,0.00040799,120]
[400005142,1767012646660,-3751.35,0.000408,30]
[400005143,1767012646669,-151.0,0.00040821,120]
[400005144,1767012646678,-151.0,0.00040821,120]
[400005145,1767012646688,-151.0,0.00040821,120]
[400005146,1767012646697,-151.0,0.00040821,120]
[400005147,1767012646706,-151.0,0.00040821,120]
[400005148,1767012646716,-2031.481272,0.00040821,28]
[400005149,1767012646725,-2031.481272,0.00040821,28]
[400005150,1767012646734,-2031.481272,0.00040821,28]
[400005151,1767012646743,-2031.481272,0.00040821,28]
[400005152,1767012646752,-500.0,0.00040821,120]
[400005153,1767012646761,-500.0,0.00040821,120]
[400005154,1767012646770,-500.0,0.00040821,120]
[400005155,1767012646779,-500.0,0.00040821,120]
[400005156,1767012646789,-500.0,0.00040821,120]
[400005157,1767012646798,-500.0,0.00040821,120]
[400005158,1767012646807,-205.461604,0.00040821,120]
[400005159,1767012646816,-17359.55948454,0.00040833,120]
[400005160,1767012646825,-150.0,0.00040839,7]
[400005161,1767012646834,-39915.69,0.000409,14]
[400005162,1767012646843,-40120.22,0.000409,14]
[400005163,1767012646852,-151.0,0.000409,120]
[400005164,1767012646861,-151.0,0.000409,120]
[400005165,1767012646871,-151.0,0.000409,120]
[400005166,1767012646880,-151.0,0.000409,120]
[400005167,1767012646890,-151.0,0.000409,120]
[400005168,1767012646902,-151.0,0.000409,120]
[400005169,1767012646911,-151.0,0.000409,120]
[400005170,1767012646922,-238.551246,0.000409,120]
[400005171,1767012646931,-238.551246,0.000409,120]
[400005172,1767012646941,-238.551246,0.000409,120]
[400005173,1767012646952,-238.551246,0.000409,120]
[400005174,1767012646962,-154.15747,0.000409,120]
[400005175,1767012646972,-151.0,0.00040916,120]
[400005176,1767012646981,-151.0,0.00040916,120]
[400005177,1767012646991,-151.0,0.00040916,120]
[400005178,1767012647000,-346.85569206,0.0004098,120]
[400005179,1767012647010,-300.0,0.00040986,60]
[400005180,1767012647020,-150.0,0.00040987,7]
[400005181,1767012647029,-7712.30670103,0.00040995,15]
[400005182,1767012647039,-1000.0,0.00040996,7]
[400005183,1767012647049,-1722.1669,0.00041,120]
[400005184,1767012647059,-160.0,0.00041,37]
[400005185,1767012647069,-1000.0,0.00041009,7]
[400005186,1767012647078,-254.13060141,0.00041039,2]
[400005187,1767012647088,-1351.0,0.00041041,7]
[400005188,1767012647097,-151.42793174,0.00041046,7]
[400005189,1767012647107,-10007.30081,0.0004109,7]
[400005190,1767012647116,-10007.30082,0.0004109,7]
[400005191,1767012647127,-10007.30082,0.0004109,7]
[400005192,1767012647137,-10007.30081,0.0004109,7]
[400005193,1767012647146,-10007.30082,0.0004109,7]
[400005194,1767012647156,-154.17002449,0.00041092,14]
[400005195,1767012647166,-500.0,0.00041095,2]
[400005196,1767012647175,-500.0,0.00041095,2]
[400005197,1767012647184,-500.0,0.00041095,2]
[400005198,1767012647194,-500.0,0.00041095,2]
[400005199,1767012647203,-500.0,0.00041095,2]
[400005200,1767012647213,-622.1888904,0.00041095,120]
[400005201,1767012647223,-500.0,0.00041095,120]
[400005202,1767012647232,-500.0,0.00041095,120]
[400005203,1767012647241,-500.0,0.00041095,120]
[400005204,1767012647252,-500.0,0.00041095,120]
[400005205,1767012647263,-500.0,0.00041095,120]
[400005206,1767012647272,-500.0,0.00041095,120]
[400005207,1767012647282,-500.0,0.00041095,120]
[400005208,1767012647291,-500.0,0.00041095,120]
[400005209,1767012647301,-500.0,0.00041095,120]
[400005210,1767012647310,-510.29771548,0.00041095,120]
[400005211,1767012647321,-500.0,0.00041095,120]
[400005212,1767012647330,-500.0,0.00041095,120]
[400005213,1767012647339,-500.0,0.00041095,120]
[400005214,1767012647348,-500.0,0.00041095,120]
[400005215,1767012647357,-500.0,0.00041095,120]
[400005216,1767012647367,-500.0,0.00041095,120]
[400005217,1767012647377,-234.59423176,0.00041095,120]
[400005218,1767012647386,-151.0,0.00041095,120]
[400005219,1767012647396,-500.0,0.00041095,120]
[400005220,1767012647406,-500.0,0.00041095,120]
[400005221,1767012647416,-500.0,0.00041095,120]
[400005222,1767012647426,-7500.0,0.00041095,120]
[400005223,1767012647436,-7500.0,0.00041095,120]
[400005224,1767012647447,-7500.0,0.00041095,120]
[400005225,1767012647457,-7500.0,0.00041095,120]
[400005226,1767012647467,-7500.0,0.00041095,120]
[400005227,1767012647476,-7500.0,0.00041095,120]
[400005228,1767012647485,-7500.0,0.00041095,120]
[400005229,1767012647495,-7500.0,0.00041095,120]
[400005230,1767012647504,-7500.0,0.00041095,120]
[400005231,1767012647513,-7500.0,0.00041095,120]
[400005232,1767012647522,-7500.0,0.00041095,120]
[400005233,1767012647531,-7500.0,0.00041095,120]
[400005234,1767012647541,-7500.0,0.00041095,120]
[400005235,1767012647550,-7500.0,0.00041095,120]
[400005236,1767012647559,-7500.0,0.00041095,120]
[400005237,1767012647571,-7500.0,0.00041095,120]
[400005238,1767012647581,-7500.0,0.00041095,120]
[400005239,1767012647590,-7500.0,0.00041095,120]
[400005240,1767012647599,-7500.0,0.00041095,120]
[400005241,1767012647609,-7500.0,0.00041095,120]
[400005242,1767012647619,-7500.0,0.00041095,120]
[400005243,1767012647629,-7500.0,0.00041095,120]
[400005244,1767012647639,-7500.0,0.00041095,120]
[400005245,1767012647650,-7500.0,0.00041095,120]
[400005246,1767012647659,-500.0,0.00041095,120]
[400005247,1767012647669,-500.0,0.00041095,120]
[400005248,1767012647679,-500.0,0.00041095,120]
[400005249,1767012647689,-500.0,0.00041095,120]
[400005250,1767012647700,-500.0,0.00041095,120]
[400005251,1767012647709,-500.0,0.00041095,120]
[400005252,1767012647719,-500.0,0.00041095,120]
[400005253,1767012647728,-500.0,0.00041095,120]
[400005254,1767012647739,-500.0,0.00041095,120]
[400005255,1767012647749,-500.0,0.00041095,120]
[400005256,1767012647758,-500.0,0.00041095,120]
[400005257,1767012647768,-500.0,0.00041095,120]
[400005258,1767012647779,-462.60072199,0.00041095,120]
[400005259,1767012647788,-151.0,0.00041095,120]
[400005260,1767012647799,-188.179526,0.00041095,120]
[400005261,1767012647808,-151.0,0.00041095,120]
[400005262,1767012647818,-151.0,0.00041095,120]
[400005263,1767012647827,-151.0,0.00041095,120]
[400005264,1767012647836,-151.0,0.00041095,120]
[400005265,1767012647845,-500.0,0.00041095,120]
[400005266,1767012647855,-500.0,0.00041095,120]
[400005267,1767012647864,-500.0,0.00041095,120]
[400005268,1767012647874,-500.0,0.00041095,120]
[400005269,1767012647884,-500.0,0.00041095,120]
[400005270,1767012647893,-500.0,0.00041095,120]
[400005271,1767012647902,-500.0,0.00041095,120]
[400005272,1767012647912,-500.0,0.00041095,120]
[400005273,1767012647921,-500.0,0.00041095,120]
[400005274,1767012647930,-500.0,0.00041095,120]
[400005275,1767012647941,-500.0,0.00041095,120]
[400005276,1767012647950,-500.0,0.00041095,120]
[400005277,1767012647959,-500.0,0.00041095,120]
[400005278,1767012647969,-500.0,0.00041095,120]
[400005279,1767012647978,-500.0,0.00041095,120]
[400005280,1767012647988,-500.0,0.00041095,120]
[400005281,1767012647998,-500.0,0.00041095,120]
[400005282,1767012648008,-500.0,0.00041095,120]
[400005283,1767012648018,-500.0,0.00041095,120]
[400005284,1767012648027,-509.98894465,0.00041095,120]
[400005285,1767012648037,-151.0,0.00041095,2]
[400005286,1767012648047,-500.0,0.00041095,120]
[400005287,1767012648057,-500.0,0.00041095,120]
[400005288,1767012648066,-500.0,0.00041095,120]
[400005289,1767012648076,-499.965,0.00041095,120]
[400005290,1767012648085,-500.0,0.00041095,120]
[400005291,1767012648095,-500.0,0.00041095,120]
[400005292,1767012648105,-500.0,0.00041095,120]
[400005293,1767012648114,-500.0,0.00041095,120]
[400005294,1767012648124,-500.0,0.00041095,120]
[400005295,1767012648134,-500.0,0.00041095,120]
[400005296,1767012648143,-500.0,0.00041095,120]
[400005297,1767012648153,-634.97591623,0.00041095,120]
[400005298,1767012648162,-151.0,0.00041095,120]
[400005299,1767012648171,-151.0,0.00041095,120]
[400005300,1767012648180,-846.86,0.00041095,120]
[400005301,1767012648190,-846.86,0.00041095,120]
[400005302,1767012648200,-846.86,0.00041095,120]
[400005303,1767012648209,-846.86,0.00041095,120]
[400005304,1767012648218,-846.86,0.00041095,120]
[400005305,1767012648228,-846.86,0.00041095,120]
[400005306,1767012648237,-846.86,0.00041095,120]
[400005307,1767012648246,-846.86,0.00041095,120]
[400005308,1767012648256,-846.86,0.00041095,120]
[400005309,1767012648265,-846.86,0.00041095,120]
[400005310,1767012648275,-846.86,0.00041095,120]
[400005311,1767012648284,-846.86,0.00041095,120]
[400005312,1767012648294,-846.86,0.00041095,120]
[400005313,1767012648303,-846.86,0.00041095,120]
[400005314,1767012648313,-846.86,0.00041095,120]
[400005315,1767012648322,-846.86,0.00041095,120]
[400005316,1767012648332,-846.86,0.00041095,120]
[400005317,1767012648341,-846.86,0.00041095,120]
[400005318,1767012648351,-846.86,0.00041095,120]
[400005319,1767012648360,-185.41040503,0.00041095,120]
[400005320,1767012648369,-9969.2,0.00041095,120]
[400005321,1767012648379,-9969.2,0.00041095,120]
[400005322,1767012648388,-9969.2,0.00041095,120]
[400005323,1767012648397,-9969.2,0.00041095,120]
[400005324,1767012648406,-9969.2,0.00041095,120]
[400005325,1767012648415,-9969.2,0.00041095,120]
[400005326,1767012648424,-9969.2,0.00041095,120]
[400005327,1767012648433,-9969.2,0.00041095,120]
[400005328,1767012648442,-9969.2,0.00041095,120]
[400005329,1767012648452,-9969.2,0.00041095,120]
[400005330,1767012648461,-9969.2,0.00041095,120]
[400005331,1767012648470,-9969.2,0.00041095,120]
[400005332,1767012648479,-9969.2,0.00041095,120]
[400005333,1767012648489,-9969.2,0.00041095,120]
[400005334,1767012648498,-9969.2,0.00041095,120]
[400005335,1767012648549,-9969.2,0.00041095,120]
[400005336,1767012648559,-9969.2,0.00041095,120]
[400005337,1767012648572,-9969.2,0.00041095,120]
[400005338,1767012648581,-9969.2,0.00041095,120]
[400005339,1767012648590,-500.0,0.00041095,120]
[400005340,1767012648599,-500.0,0.00041095,120]
[400005341,1767012648609,-500.0,0.00041095,120]
[400005342,1767012648618,-467.07305903,0.00041095,120]
[400005343,1767012648627,-672.91,0.00041095,120]
[400005344,1767012648636,-672.91,0.00041095,120]
[400005345,1767012648647,-672.91,0.00041095,120]
[400005346,1767012648656,-672.91,0.00041095,120]
[400005347,1767012648665,-672.91,0.00041095,120]
[400005348,1767012648674,-672.91,0.00041095,120]
[400005349,1767012648687,-672.91,0.00041095,120]
[400005350,1767012648696,-672.91,0.00041095,120]
[400005351,1767012648706,-672.91,0.00041095,120]
[400005352,1767012648715,-672.91,0.00041095,120]
[400005353,1767012648724,-672.91,0.00041095,120]
[400005354,1767012648733,-672.91,0.00041095,120]
[400005355,1767012648743,-672.91,0.00041095,120]
[400005356,1767012648753,-672.91,0.00041095,120]
[400005357,1767012648762,-672.91,0.00041095,120]
[400005358,1767012648771,-672.91,0.00041095,120]
[400005359,1767012648781,-422.845317,0.00041095,120]
[400005360,1767012648790,-672.91,0.00041095,120]
[400005361,1767012648799,-672.91,0.00041095,120]
[400005362,1767012648809,-672.91,0.00041095,120]
[400005363,1767012648818,-422.845317,0.00041095,120]
[400005364,1767012648830,-422.845317,0.00041095,120]
[400005365,1767012648839,-500.0,0.00041095,120]
[400005366,1767012648849,-422.845317,0.00041095,120]
[400005367,1767012648858,-352.28453626,0.00041095,120]
[400005368,1767012648867,-432.068318,0.00041095,120]
[400005369,1767012648877,-432.068318,0.00041095,120]
[400005370,1767012648886,-432.068318,0.00041095,120]
[400005371,1767012648896,-151.0,0.00041095,120]
[400005372,1767012648906,-432.068318,0.00041095,120]
[400005373,1767012648916,-151.0,0.00041095,120]
[400005374,1767012648927,-151.0,0.00041095,120]
[400005375,1767012648938,-1718.662235,0.00041095,120]
[400005376,1767012648949,-1718.662235,0.00041095,120]
[400005377,1767012648959,-1405.01,0.00041095,120]
[400005378,1767012648971,-1405.01,0.00041095,120]
[400005379,1767012648980,-1405.01,0.00041095,120]
[400005380,1767012648989,-1405.01,0.00041095,120]
[400005381,1767012648999,-1718.662235,0.00041095,120]
[400005382,1767012649009,-1405.01,0.00041095,120]
[400005383,1767012649018,-1405.01,0.00041095,120]
[400005384,1767012649027,-1405.01,0.00041095,120]
[400005385,1767012649036,-1405.01,0.00041095,120]
[400005386,1767012649046,-1405.01,0.00041095,120]
[400005387,1767012649055,-1405.01,0.00041095,120]
[400005388,1767012649064,-1718.662235,0.00041095,120]
[400005389,1767012649073,-1405.01,0.00041095,120]
[400005390,1767012649082,-1405.01,0.00041095,120]
[400005391,1767012649091,-1405.01,0.00041095,120]
[400005392,1767012649100,-1405.01,0.00041095,120]
[400005393,1767012649109,-1405.01,0.00041095,120]
[400005394,1767012649118,-1405.01,0.00041095,120]
[400005395,1767012649128,-1405.01,0.00041095,120]
[400005396,1767012649138,-1405.01,0.00041095,120]
[400005397,1767012649148,-1405.01,0.00041095,120]
[400005398,1767012649158,-1443.304395,0.00041095,120]
[400005399,1767012649167,-1443.304395,0.00041095,120]
[400005400,1767012649176,-1443.304395,0.00041095,120]
[400005401,1767012649185,-1443.304395,0.00041095,120]
[400005402,1767012649196,-352.483327,0.00041095,120]
[400005403,1767012649206,-352.483327,0.00041095,120]
[400005404,1767012649216,-352.483327,0.00041095,120]
[400005405,1767012649226,-352.483327,0.00041095,120]
[400005406,1767012649236,-158.23920005,0.00041095,120]
[400005407,1767012649246,-156.06143702,0.00041095,2]
[400005408,1767012649256,-170.70503413,0.00041096,2]
[400005409,1767012649265,-312.21181666,0.00041096,2]
[400005410,1767012649274,-200.0,0.00041096,60]
[400005411,1767012649283,-191.34125565,0.000411,120]
[400005412,1767012649292,-2000.0,0.000411,120]
[400005413,1767012649301,-1672.637,0.000411,120]
[400005414,1767012649310,-150.0,0.00041108,14]
[400005415,1767012649320,-1000.0,0.00041122,14]
[400005416,1767012649329,-300.0,0.00041122,2]
[400005417,1767012649339,-150.0,0.00041134,14]
[400005418,1767012649348,-150.0,0.00041144,14]
[400005419,1767012649357,-150.0,0.00041152,14]
[400005420,1767012649366,-300.0,0.0004118,2]
[400005421,1767012649375,-300.0,0.00041191,2]
[400005422,1767012649384,-1000.0,0.00041196,14]
[400005423,1767012649393,-465.0,0.00041198,30]
[400005424,1767012649402,-201.096682,0.0004122,120]
[400005425,1767012649411,-1000.0,0.00041225,14]
[400005426,1767012649421,-552.802466,0.00041225,120]
[400005427,1767012649430,-552.802466,0.00041225,120]
[400005428,1767012649439,-552.802466,0.00041225,120]
[400005429,1767012649448,-552.802466,0.00041225,120]
[400005430,1767012649457,-151.0,0.00041225,120]
[400005431,1767012649466,-151.0,0.00041225,120]
[400005432,1767012649475,-328.848986,0.00041225,120]
[400005433,1767012649485,-328.848986,0.00041225,120]
[400005434,1767012649494,-328.848986,0.00041225,120]
[400005435,1767012649504,-328.848986,0.00041225,120]
[400005436,1767012649513,-201.154993,0.00041225,120]
[400005437,1767012649524,-151.0,0.00041225,120]
[400005438,1767012649533,-466.846255,0.00041225,120]
[400005439,1767012649542,-300.0,0.00041238,2]
[400005440,1767012649551,-1000.0,0.00041257,14]
[400005441,1767012649560,-40196.92,0.000413,14]
[400005442,1767012649569,-151.0,0.000413,120]
[400005443,1767012649578,-151.0,0.000413,120]
[400005444,1767012649588,-151.0,0.000413,120]
[400005445,1767012649597,-151.0,0.000413,120]
[400005446,1767012649606,-151.0,0.000413,120]
[400005447,1767012649616,-2031.481272,0.000413,28]
[400005448,1767012649626,-2031.481272,0.000413,28]
[400005449,1767012649635,-2031.481272,0.000413,28]
[400005450,1767012649646,-2031.481272,0.000413,28]
[400005451,1767012649656,-150.0,0.00041325,14]
[400005452,1767012649666,-163.0,0.00041382,11]
[400005453,1767012649676,-500.0,0.00041399,2]
[400005454,1767012649685,-5059.94228447,0.000414,14]
[400005455,1767012649694,-315.48213503,0.000414,120]
[400005456,1767012649703,-191.34,0.000414,120]
[400005457,1767012649712,-200.0,0.000414,21]
[400005458,1767012649723,-192.49708535,0.000414,120]
[400005459,1767012649732,-1312.21969384,0.000414,2]
[400005460,1767012649743,-481.65,0.00041452,30]
[400005461,1767012649753,-481.65,0.00041452,30]
[400005462,1767012649763,-481.65,0.00041452,30]
[400005463,1767012649772,-481.65,0.00041452,30]
[400005464,1767012649781,-481.65,0.00041452,30]
[400005465,1767012649791,-481.65,0.00041452,30]
[400005466,1767012649800,-481.65,0.00041452,30]
[400005467,1767012649810,-300.0,0.00041463,2]
[400005468,1767012649819,-1000.0,0.00041485,14]
[400005469,1767012649829,-846.86,0.00041489,120]
[400005470,1767012649838,-846.86,0.00041489,120]
[400005471,1767012649848,-846.86,0.00041489,120]
[400005472,1767012649858,-846.86,0.00041489,120]
[400005473,1767012649868,-846.87330983,0.00041489,120]
[400005474,1767012649877,-9969.2,0.00041489,120]
[400005475,1767012649887,-9969.2,0.00041489,120]
[400005476,1767012649897,-9969.2,0.00041489,120]
[400005477,1767012649906,-9969.2,0.00041489,120]
[400005478,1767012649917,-9969.314413,0.00041489,120]
[400005479,1767012649926,-672.91,0.00041489,120]
[400005480,1767012649937,-672.91,0.00041489,120]
[400005481,1767012649947,-672.91,0.00041489,120]
[400005482,1767012649957,-672.91,0.00041489,120]
[400005483,1767012649968,-672.93359538,0.00041489,120]
[400005484,1767012649978,-1405.01,0.00041489,120]
[400005485,1767012649988,-1405.01,0.00041489,120]
[400005486,1767012649999,-1405.01,0.00041489,120]
[400005487,1767012650008,-1405.01,0.00041489,120]
[400005488,1767012650018,-1405.19542362,0.00041489,120]
[400005489,1767012650028,-5254.4244304,0.00041489,2]
[400005490,1767012650037,-300.0,0.00041493,2]
[400005491,1767012650047,-150.0,0.00041499,2]
[400005492,1767012650056,-500.0,0.00041499,120]
[400005493,1767012650065,-500.0,0.00041499,120]
[400005494,1767012650074,-500.0,0.00041499,120]
[400005495,1767012650083,-500.0,0.00041499,120]
[400005496,1767012650092,-500.0,0.00041499,120]
[400005497,1767012650101,-500.0,0.00041499,120]
[400005498,1767012650110,-500.0,0.00041499,120]